bitfinex-derivatives/quotes_SOLF0:USTF0_20250820
["timestamp","ask_amount","ask_price","bid_price","bid_amount"]
[1755659167056,5.5396,180.52,180.5,2.92]
[1755659167955,137.04,180.56,180.51,2.92]
[1755659168156,137.04,180.56,180.47,2.92]
[1755659168352,0.05,180.57,180.5,2.92]
[1755659168750,0.05,180.57,180.47,2.92]
[1755659170358,0.05,180.57,180.49,2.92]
[1755659171259,0.05,180.57,180.49,5.36328452]
[1755659171459,0.05,180.57,180.5,8.4602]
[1755659172158,0.05,180.57,180.5,2.92]
[1755659172963,0.05,180.57,180.5,8.4601]
[1755659173163,137.02,180.58,180.5,2.92]
[1755659175463,137.02,180.58,180.51,2.92]
[1755659177460,0.05,180.57,180.49,2.92]
[1755659177862,5.5393,180.54,180.49,5.36328452]
[1755659178062,5.5393,180.54,180.51,2.92]
[1755659178261,5.5393,180.54,180.5,2.92]
[1755659178870,5.5393,180.54,180.51,2.92]
[1755659179166,5.5393,180.54,180.49,2.44328452]
[1755659179167,5.5393,180.54,180.5,2.92]
[1755659179365,5.5393,180.54,180.51,2.92]
[1755659179665,5.5393,180.54,180.52,2.92]
[1755659180166,5.5393,180.53,180.52,2.92]
[1755659180966,0.05,180.57,180.48,5.36328452]
[1755659181763,5.5399,180.52,180.48,2.44328452]
[1755659181967,5.5399,180.52,180.51,2.92]
[1755659183068,5.5394,180.53,180.48,7.98408452]
[1755659183462,5.5394,180.53,180.51,2.92]
[1755659184070,5.5391,180.54,180.51,2.92]
[1755659184264,5.5391,180.54,180.52,2.92]
[1755659184459,0.05,180.56,180.52,2.92]
[1755659185771,0.05,180.55,180.49,2.92]
[1755659187269,0.05,180.55,180.48,2.44328452]
[1755659187270,5.5395,180.53,180.48,2.44328452]
[1755659187470,5.5395,180.53,180.5,2.92]
[1755659188160,5.5397,180.52,180.5,2.92]
[1755659188368,0.05,180.55,180.5,2.92]
[1755659188565,137.02,180.58,180.5,2.92]
[1755659188766,0.06,180.53,180.5,2.92]
[1755659189269,5.5396,180.52,180.5,2.92]
[1755659190469,5.5399,180.51,180.5,2.92]
[1755659190871,5.5399,180.51,180.48,2.44328452]
[1755659191066,5.5399,180.51,180.49,3.03]
[1755659191271,0.06,180.53,180.5,3.03]
[1755659191577,0.06,180.57,180.45,5.47328452]
[1755659192076,0.06,180.57,180.45,2.44328452]
[1755659192278,5.5406,180.49,180.48,3.03]
[1755659193175,0.06,180.54,180.46,3.03]
[1755659196167,0.06,180.54,180.45,4.61627545]
[1755659196467,0.06,180.54,180.45,3.03]
[1755659197178,0.06,180.54,180.45,7.64627545]
[1755659197480,0.06,180.54,180.45,3.03]
[1755659198275,0.06,180.52,180.45,7.64627545]
[1755659198476,0.06,180.52,180.45,3.03]
[1755659199078,0.06,180.52,180.44,4.61627545]
[1755659199277,2.52153315,180.51,180.43,4.61627545]
[1755659199583,0.06,180.51,180.42,4.61627545]
[1755659199776,0.06,180.48,180.42,4.61627545]
[1755659199976,137.12,180.48,180.4,7.64627545]
[1755659200176,2.44328452,180.51,180.38,6.05710456]
[1755659200177,0.06,180.51,180.42,3.03]
[1755659200483,0.04197082,180.46,180.45,3.03]
[1755659200976,137.12,180.51,180.45,3.03]
[1755659201577,137.12,180.51,180.43,3.03]
[1755659201578,0.06,180.47,180.43,3.03]
[1755659201883,0.06,180.46,180.43,3.03]
[1755659202080,0.06,180.5,180.42,7.68924056]
[1755659202271,5.5413,180.47,180.45,3.03]
[1755659202682,5.5418,180.45,180.42,4.65924056]
[1755659202877,5.5418,180.45,180.43,3.03]
[1755659203280,5.5421,180.44,180.43,3.03]
[1755659204084,5.5424,180.43,180.42,4.65924056]
[1755659204285,0.06,180.45,180.4,7.68924056]
[1755659204584,0.06,180.44,180.4,3.03]
[1755659204976,0.06,180.5,180.4,3.03]
[1755659205178,0.06,180.5,180.44,7.10252508]
[1755659205472,0.06,180.53,180.41,4.65924056]
[1755659205673,0.06,180.53,180.44,7.68924056]
[1755659205885,137.2,180.53,180.44,4.65924056]
[1755659206080,137.2,180.53,180.45,3.03]
[1755659207092,5.5406,180.49,180.44,4.65924056]
[1755659207475,5.5406,180.49,180.47,3.03]
[1755659208482,137.2,180.53,180.44,7.68924056]
[1755659208483,0.06,180.52,180.44,7.68924056]
[1755659208690,0.06,180.52,180.44,3.03]
[1755659208987,2.44328452,180.51,180.42,4.65924056]
[1755659209284,0.06,180.5,180.41,4.65924056]
[1755659209479,0.06,180.5,180.42,7.68924056]
[1755659210084,5.5421,180.45,180.42,4.65924056]
[1755659210279,5.5421,180.45,180.43,3.03]
[1755659212382,2.44328452,180.51,180.38,6.05710456]
[1755659212585,0.06,180.44,180.38,3.03]
[1755659213180,5.5426,180.43,180.39,5.5436]
[1755659213686,0.06,180.47,180.41,3.03]
[1755659221392,5.5427,180.42,180.41,3.03]
[1755659221587,0.04,180.44,180.37,3.09]
[1755659221982,0.04,180.44,180.38,3.09]
[1755659223298,0.04,180.44,180.35,3.09]
[1755659223783,0.04,180.44,180.35,8.6348]
[1755659223981,0.04,180.44,180.36,3.09]
[1755659224983,509.5,180.49,180.38,2.44328452]
[1755659225195,509.5,180.49,180.39,3.09]
[1755659225488,509.5,180.49,180.41,3.09]
[1755659225788,372.4,180.49,180.41,3.09]
[1755659225993,372.4,180.49,180.42,3.09]
[1755659226189,372.4,180.49,180.44,3.09]
[1755659226586,372.4,180.49,180.46,3.09]
[1755659226787,372.4,180.49,180.47,3.09]
[1755659227194,372.4,180.49,180.48,3.09]
[1755659229595,137.1,180.52,180.48,5.5409]
[1755659229794,137.1,180.52,180.5,3.09]
[1755659230696,142.6397,180.52,180.5,3.09]
[1755659230993,137.1,180.52,180.45,3.09]
[1755659231188,0.04,180.57,180.47,2.44328452]
[1755659231393,372.4,180.58,180.48,3.09]
[1755659231700,137.1,180.57,180.51,3.09]
[1755659231892,377.938,180.58,180.51,3.09]
[1755659232092,137.1,180.57,180.54,3.09]
[1755659232291,142.6381,180.57,180.54,3.09]
[1755659232699,137.1,180.57,180.54,3.09]
[1755659233196,5.5385,180.56,180.54,3.09]
[1755659233391,137.1,180.57,180.52,5.5396]
[1755659233600,137.1,180.57,180.53,3.09]
[1755659233790,372.4,180.58,180.51,3.09]
[1755659234100,137.08,180.58,180.51,3.09]
[1755659234300,0.04,180.66,180.56,2.44328452]
[1755659234499,137.08,180.65,180.57,3.09]
[1755659235201,140.08,180.65,180.61,3.09]
[1755659236301,137.08,180.65,180.61,3.09]
[1755659236499,3.0,180.64,180.56,2.44328452]
[1755659236697,3.0,180.64,180.56,5.53328452]
[1755659237398,3.0,180.64,180.57,5.5379]
[1755659238201,5.5368,180.62,180.57,5.5379]
[1755659238393,5.5368,180.62,180.59,3.09]
[1755659239102,5.5363,180.63,180.6,3.09]
[1755659239406,137.08,180.65,180.57,3.09]
[1755659239606,142.6159,180.65,180.6,5.537]
[1755659239799,142.6159,180.65,180.61,3.09]
[1755659240202,5.5359,180.65,180.61,3.09]
[1755659240403,137.02,180.64,180.61,3.09]
[1755659240908,137.0578821,180.64,180.61,3.09]
[1755659241108,0.0378821,180.64,180.62,3.09]
[1755659241403,0.0378821,180.64,180.61,0.03493161]
[1755659241606,0.0378821,180.64,180.63,3.09]
[1755659242305,0.0378821,180.64,180.61,5.57173161]
[1755659242306,0.0378821,180.64,180.61,0.03493161]
[1755659242809,0.0378821,180.64,180.61,3.12493161]
[1755659243004,0.0378821,180.64,180.61,8.66173161]
[1755659243306,0.0378821,180.64,180.62,3.09]
[1755659243706,3.0378821,180.64,180.61,0.03493161]
[1755659244108,3.0378821,180.64,180.61,3.12493161]
[1755659244306,0.0378821,180.64,180.61,3.12493161]
[1755659244812,0.0378821,180.64,180.63,3.09]
[1755659245204,0.0378821,180.64,180.63,8.6263]
[1755659245610,0.0378821,180.64,180.63,3.09]
[1755659247210,0.0378821,180.64,180.63,8.6263]
[1755659248810,0.0378821,180.64,180.63,3.09]
[1755659249012,0.0378821,180.64,180.61,2.87493161]
[1755659249206,0.0378821,180.64,180.61,0.03493161]
[1755659249513,0.0378821,180.64,180.62,2.84]
[1755659250213,0.0378821,180.64,180.62,8.3765]
[1755659251215,0.0378821,180.64,180.62,2.84]
[1755659253115,0.0378821,180.64,180.62,5.5365]
[1755659253319,0.0378821,180.64,180.63,2.84]
[1755659254708,0.0378821,180.64,180.63,8.3763]
[1755659256515,0.0378821,180.64,180.63,2.84]
[1755659256719,0.0378821,180.64,180.62,8.3765]
[1755659257720,0.0378821,180.64,180.63,8.3763]
[1755659265629,3.0778821,180.64,180.61,0.03493161]
[1755659266223,3.0778821,180.64,180.61,2.87493161]
[1755659267918,0.0378821,180.64,180.63,2.84]
[1755659268522,0.0378821,180.64,180.63,8.3763]
[1755659269121,0.0378821,180.64,180.62,2.44328452]
[1755659269326,3.0778821,180.64,180.61,0.03493161]
[1755659269525,3.0778821,180.64,180.61,2.87493161]
[1755659269728,3.0778821,180.64,180.61,8.41163161]
[1755659270935,3.0778821,180.64,180.62,5.5365]
[1755659271333,3.0778821,180.64,180.61,2.87493161]
[1755659272421,3.0778821,180.64,180.61,8.41153161]
[1755659273432,3.0778821,180.64,180.62,5.5364]
[1755659276131,3.04,180.62,180.61,0.03493161]
[1755659276532,8.5766,180.62,180.61,0.03493161]
[1755659276929,3.04,180.62,180.56,2.84]
[1755659277238,3.04,180.62,180.53,5.28328452]
[1755659278127,136.84,180.63,180.53,5.28328452]
[1755659278128,5.5378,180.58,180.53,5.28328452]
[1755659278332,136.84,180.58,180.53,2.44328452]
[1755659278531,3.13,180.56,180.52,3.08]
[1755659280237,0.03986402,180.59,180.51,3.08]
[1755659280432,0.03986402,180.59,180.53,2.44328452]
[1755659280629,139.95,180.6,180.53,5.52328452]
[1755659280833,0.03633472,180.58,180.53,3.08]
[1755659281240,3.13,180.56,180.53,3.08]
[1755659282234,8.6684,180.56,180.53,3.08]
[1755659282439,3.13,180.56,180.53,3.08]
[1755659282640,0.03633472,180.58,180.51,3.08]
[1755659283633,0.03633472,180.58,180.55,3.08]
[1755659283840,0.03633472,180.58,180.56,3.08]
[1755659284243,0.03633472,180.58,180.57,3.08]
[1755659285240,0.03633472,180.58,180.57,8.6181]
[1755659285939,0.03633472,180.58,180.51,9.08565685]
[1755659285940,136.84,180.64,180.59,5.5373]
[1755659286147,139.97,180.64,180.57,3.08]
[1755659286743,139.97,180.64,180.56,2.44328452]
[1755659286744,136.84,180.64,180.56,2.44328452]
[1755659286937,136.84,180.64,180.57,3.08]
[1755659287553,136.84,180.64,180.61,5.5367]
[1755659287846,3.13,180.66,180.6,3.08]
[1755659288650,3.13,180.66,180.64,5.5357]
[1755659288944,3.13,180.66,180.59,8.50038908]
[1755659288945,3.13,180.66,180.59,3.08]
[1755659289150,3.13,180.66,180.6,5.5372]
[1755659290347,3.13,180.65,180.61,8.6169]
[1755659291450,3.13,180.66,180.57,5.52328452]
[1755659293149,3.13,180.66,180.59,5.5374]
[1755659294953,3.13,180.66,180.61,3.08]
[1755659295150,3.13,180.66,180.6,3.08]
[1755659296247,3.13,180.66,180.6,5.52328452]
[1755659296451,3.13,180.69,180.61,3.08]
[1755659296648,136.82,180.68,180.61,3.08]
[1755659297152,8.6653,180.67,180.63,3.08]
[1755659297553,3.13,180.66,180.63,3.08]
[1755659298956,8.6653,180.67,180.63,3.08]
[1755659299250,3.13,180.66,180.63,3.08]
[1755659300155,5.5354,180.66,180.61,5.5368]
[1755659300359,3.13,180.67,180.6,2.44328452]
[1755659300558,3.13,180.67,180.59,3.08]
[1755659300849,3.13,180.62,180.59,3.08]
[1755659302252,5.5363,180.63,180.6,3.08]
[1755659303452,8.6663,180.63,180.6,3.08]
[1755659305253,5.5363,180.63,180.61,3.08]
[1755659306358,8.6663,180.63,180.59,5.5375]
[1755659306546,8.6663,180.63,180.6,3.08]
[1755659307857,3.13,180.66,180.6,3.08]
[1755659308946,3.13,180.66,180.6,5.52328452]
[1755659309354,3.13,180.66,180.61,3.02]
[1755659309657,3.13,180.66,180.63,3.02]
[1755659311355,8.6654,180.66,180.63,3.02]
[1755659311552,2.86,180.65,180.62,3.02]
[1755659312457,8.3954,180.66,180.63,3.02]
[1755659313852,2.86,180.66,180.63,3.02]
[1755659314961,372.06,180.72,180.63,3.02]
[1755659314962,2.86,180.71,180.64,2.44328452]
[1755659315159,139.62,180.71,180.64,2.44328452]
[1755659315453,139.62,180.71,180.65,5.5356]
[1755659318062,2.86,180.7,180.67,3.02]
[1755659318955,136.76,180.71,180.67,3.02]
[1755659319163,2.86,180.69,180.67,3.02]
[1755659319355,2.86,180.69,180.66,5.5353]
[1755659319555,136.76,180.71,180.66,5.5353]
[1755659319861,2.86,180.7,180.67,3.02]
[1755659320261,2.86,180.69,180.66,5.5353]
[1755659320458,2.86,180.69,180.66,8.5553]
[1755659321362,136.76,180.71,180.65,5.5356]
[1755659321554,2.86,180.68,180.65,8.5556]
[1755659323060,2.86,180.7,180.66,8.5553]
[1755659323254,2.86,180.69,180.66,8.5553]
[1755659325461,2.86,180.7,180.66,8.5553]
[1755659325665,2.86,180.69,180.66,8.5553]
[1755659327668,2.86,180.68,180.66,3.02]
[1755659330264,136.76,180.71,180.66,3.02]
[1755659330469,2.86,180.7,180.66,3.02]
[1755659330771,136.76,180.71,180.66,3.02]
[1755659330970,2.86,180.69,180.66,3.02]
[1755659332973,2.86,180.69,180.65,5.5356]
[1755659333267,2.86,180.7,180.64,5.5358]
[1755659333770,2.86,180.7,180.61,6.05710456]
[1755659334074,2.86,180.7,180.6,5.46328452]
[1755659334272,2.86,180.7,180.6,11.00028452]
[1755659334669,2.86,180.7,180.6,5.46328452]
[1755659334972,139.52,180.7,180.64,8.5559]
[1755659335170,139.52,180.7,180.64,3.02]
[1755659336272,139.52,180.7,180.64,8.556]
[1755659336474,139.52,180.7,180.64,3.02]
[1755659337173,2.86,180.69,180.64,3.02]
[1755659337372,2.86,180.67,180.61,3.02]
[1755659338477,2.86,180.67,180.61,8.5567]
[1755659341381,2.86,180.67,180.61,3.02]
[1755659341572,2.86,180.67,180.6,2.44328452]
[1755659341775,2.86,180.67,180.57,8.50038908]
[1755659341983,2.86,180.67,180.55,3.05]
[1755659342183,3.13,180.65,180.54,8.50038908]
[1755659342383,3.13,180.65,180.54,7.98218452]
[1755659343083,3.13,180.65,180.54,2.44328452]
[1755659343284,3.13,180.65,180.55,3.05]
[1755659343580,3.13,180.63,180.55,3.05]
[1755659344784,3.13,180.63,180.56,5.5382]
[1755659345283,3.13,180.63,180.55,3.05]
[1755659345483,3.13,180.63,180.57,8.588]
[1755659346083,3.13,180.63,180.57,3.05]
[1755659346283,3.13,180.63,180.53,3.05]
[1755659346683,3.13,180.63,180.53,8.5891]
[1755659346882,3.13,180.63,180.53,3.05]
[1755659348180,3.13,180.62,180.53,3.05]
[1755659349276,3.13,180.62,180.51,5.5397]
[1755659350288,3.13,180.59,180.5,3.05]
[1755659352480,3.13,180.59,180.46,2.44328452]
[1755659352680,3.13,180.59,180.47,5.5409]
[1755659353290,19.74,180.59,180.47,5.5409]
[1755659353592,3.13,180.56,180.47,5.5409]
[1755659353787,3.13,180.54,180.47,5.5409]
[1755659353990,3.13,180.54,180.46,8.5914]
[1755659357191,3.13,180.54,180.48,3.05]
[1755659358593,3.13,180.54,180.48,8.5909]
[1755659358893,3.13,180.57,180.49,3.05]
[1755659359089,139.81,180.57,180.49,3.05]
[1755659359291,139.81,180.57,180.49,5.5405]
[1755659359489,139.81,180.57,180.5,3.05]
[1755659360488,3.13,180.62,180.5,3.05]
[1755659360797,136.66,180.61,180.5,3.05]
[1755659361089,136.66,180.61,180.53,3.05]
[1755659362595,136.66,180.61,180.53,8.5893]
[1755659362797,3.13,180.6,180.53,3.05]
[1755659363192,3.13,180.6,180.5,3.05]
[1755659363794,3.13,180.6,180.5,8.5902]
[1755659364186,3.13,180.6,180.5,3.05]
[1755659364499,5.57328452,180.6,180.5,3.05]
[1755659364795,3.13,180.59,180.47,3.05]
[1755659365198,3.13,180.59,180.47,8.5909]
[1755659365397,3.13,180.59,180.47,3.05]
[1755659366198,3.13,180.59,180.47,8.5911]
[1755659368393,2.44328452,180.57,180.46,5.5414]
[1755659368595,2.89,180.56,180.45,2.96]
[1755659369500,2.89,180.56,180.46,2.96]
[1755659370400,2.89,180.56,180.46,8.5015]
[1755659371292,2.89,180.56,180.46,2.96]
[1755659372502,2.89,180.53,180.42,2.96]
[1755659372702,136.64,180.52,180.42,2.96]
[1755659373004,2.89,180.51,180.42,2.96]
[1755659374100,0.03736047,180.48,180.42,2.96]
[1755659374301,2.92736047,180.48,180.45,0.03587099]
[1755659374701,2.92736047,180.48,180.45,2.99587099]
[1755659374898,0.03736047,180.48,180.45,0.03587099]
[1755659375096,0.03736047,180.48,180.45,2.99587099]
[1755659375297,2.92736047,180.48,180.45,2.99587099]
[1755659375904,0.03736047,180.48,180.46,2.96]
[1755659377001,0.03736047,180.48,180.45,0.03587099]
[1755659377202,2.92736047,180.48,180.45,0.03587099]
[1755659378003,2.92736047,180.48,180.45,2.99587099]
[1755659378403,0.03736047,180.48,180.46,2.96]
[1755659381200,2.92736047,180.48,180.45,0.03587099]
[1755659381707,2.89,180.47,180.45,0.03587099]
[1755659383100,2.89,180.46,180.45,0.03587099]
[1755659383500,0.03736047,180.48,180.45,0.03587099]
[1755659383708,2.92736047,180.48,180.45,0.03587099]
[1755659384401,0.03736047,180.48,180.45,2.99587099]
[1755659384714,0.03736047,180.48,180.47,2.96]
[1755659386307,2.89,180.47,180.45,0.03587099]
[1755659386698,0.03736047,180.48,180.45,0.03587099]
[1755659386902,0.03736047,180.48,180.45,2.99587099]
[1755659387408,0.03736047,180.48,180.46,2.96]
[1755659387609,0.03736047,180.48,180.45,0.03587099]
[1755659387610,0.03736047,180.48,180.47,2.96]
[1755659388609,0.03736047,180.48,180.45,0.03587099]
[1755659388806,0.03736047,180.48,180.46,2.96]
[1755659389005,0.03736047,180.48,180.47,2.96]
[1755659391104,0.03736047,180.48,180.45,5.57757099]
[1755659391408,2.92736047,180.48,180.45,0.03587099]
[1755659391709,0.03736047,180.48,180.45,2.99587099]
[1755659392304,2.92736047,180.48,180.45,0.03587099]
[1755659392711,2.89,180.47,180.45,0.03587099]
[1755659395006,0.03736047,180.48,180.45,2.99587099]
[1755659397012,2.89,180.47,180.45,0.03587099]
[1755659400414,0.03736047,180.48,180.46,3.03]
[1755659401217,3.09,180.47,180.45,0.03587099]
[1755659402211,0.03736047,180.48,180.45,0.03587099]
[1755659402417,3.12736047,180.48,180.45,0.03587099]
[1755659402817,3.12736047,180.48,180.45,3.06587099]
[1755659404214,3.12736047,180.48,180.45,0.03587099]
[1755659404513,3.09,180.47,180.45,0.03587099]
[1755659404718,0.03736047,180.48,180.45,0.03587099]
[1755659405319,3.09,180.46,180.45,0.03587099]
[1755659405519,139.71,180.46,180.45,0.03587099]
[1755659422151,16.63,180.44,180.34,3.03]
[1755659422455,3.09,180.41,180.32,3.03]
[1755659422750,136.6,180.4,180.32,3.03]
[1755659423454,0.04016505,180.38,180.32,3.03]
[1755659429252,136.62,180.37,180.32,3.03]
[1755659430455,0.04016505,180.38,180.34,3.11]
[1755659430858,2.44328452,180.39,180.29,3.11]
[1755659431252,0.03954551,180.38,180.29,3.11]
[1755659431456,2.87954551,180.38,180.28,3.11]
[1755659431859,2.84,180.38,180.28,3.11]
[1755659432164,0.03986039,180.35,180.28,3.11]
[1755659432356,136.62,180.34,180.28,3.11]
[1755659434557,136.62,180.34,180.29,5.5465]
[1755659434759,136.62,180.34,180.32,3.11]
[1755659435856,136.62,180.34,180.27,5.5473]
[1755659436056,136.62,180.34,180.3,3.11]
[1755659436362,139.46,180.34,180.3,3.11]
[1755659436659,136.62,180.34,180.25,3.11]
[1755659437051,5.28328452,180.33,180.25,3.11]
[1755659437357,0.03562448,180.31,180.25,3.11]
[1755659442563,2.84,180.29,180.25,3.11]
[1755659442959,0.03562448,180.31,180.17,6.05710456]
[1755659443164,2.84,180.29,180.14,3.11]
[1755659443469,2.44328452,180.28,180.19,5.5496]
[1755659443768,0.03529306,180.23,180.21,3.11]
[1755659443971,0.03529306,180.23,180.16,3.11]
[1755659444769,0.03529306,180.23,180.16,8.6604]
[1755659445169,0.03529306,180.23,180.17,3.11]
[1755659446573,2.84,180.21,180.17,3.11]
[1755659446971,2.84,180.21,180.13,3.11]
[1755659447472,2.84,180.21,180.12,0.96584838]
[1755659447473,5.5511,180.15,180.12,0.96584838]
[1755659447675,5.5511,180.15,180.14,3.11]
[1755659448378,0.04133345,180.16,180.15,3.11]
[1755659448871,139.52,180.21,180.15,3.11]
[1755659449176,372.68,180.24,180.15,3.11]
[1755659449375,372.68,180.24,180.17,3.11]
[1755659449571,372.68,180.24,180.17,8.6603]
[1755659449872,372.68,180.24,180.17,3.11]
[1755659450271,372.68,180.24,180.17,5.55328452]
[1755659450470,372.68,180.24,180.18,3.11]
[1755659450673,372.68,180.24,180.17,2.44328452]
[1755659450876,372.68,180.24,180.21,3.11]
[1755659451070,372.68,180.24,180.17,2.44328452]
[1755659451277,372.68,180.24,180.22,3.11]
[1755659451977,372.68,180.24,180.18,5.55]
[1755659452370,372.68,180.24,180.2,3.11]
[1755659452565,372.68,180.24,180.17,3.11]
[1755659452776,372.68,180.24,180.2,3.11]
[1755659452971,372.68,180.24,180.21,5.5491]
[1755659453178,0.04092485,180.22,180.21,5.5491]
[1755659453768,0.04092485,180.22,180.21,8.6591]
[1755659453970,0.04092485,180.22,180.19,0.03631715]
[1755659454272,2.84,180.2,180.12,3.11]
[1755659454578,137.08,180.19,180.12,3.11]
[1755659455378,0.04036561,180.17,180.12,3.11]
[1755659455567,0.04036561,180.17,180.15,3.11]
[1755659456173,0.04036561,180.17,180.11,3.11]
[1755659460477,0.04036561,180.17,180.13,2.97]
[1755659460676,0.04036561,180.17,180.14,2.97]
[1755659460871,0.04036561,180.17,180.11,2.97]
[1755659461276,2.87,180.16,180.11,2.97]
[1755659461478,0.04036561,180.17,180.11,2.97]
[1755659461479,2.87,180.15,180.11,2.97]
[1755659461976,0.04036561,180.17,180.09,2.97]
[1755659462286,2.87,180.19,180.09,8.5228]
[1755659462671,0.04203752,180.15,180.07,2.97]
[1755659463077,2.87,180.17,180.07,2.97]
[1755659463479,0.04187247,180.13,180.07,2.97]
[1755659464479,0.04187247,180.13,180.07,8.5234]
[1755659464674,0.04187247,180.13,180.08,2.97]
[1755659465284,0.04187247,180.13,180.07,2.44328452]
[1755659465477,0.04187247,180.13,180.1,2.97]
[1755659465674,0.04187247,180.13,180.09,5.5526]
[1755659465879,0.04187247,180.13,180.07,2.44328452]
[1755659466474,0.04187247,180.13,180.11,2.97]
[1755659466679,0.04187247,180.13,180.08,2.97]
[1755659466882,0.04187247,180.13,180.07,2.44328452]
[1755659467185,0.04187247,180.13,180.12,2.97]
[1755659467481,0.04187247,180.13,180.12,5.5519]
[1755659467681,0.04187247,180.13,180.12,8.5219]
[1755659470582,2.87,180.3,180.13,2.97]
[1755659470884,2.87,180.3,180.23,2.97]
[1755659471280,2.87,180.34,180.23,2.97]
[1755659471481,2.87,180.34,180.24,5.5481]
[1755659471681,2.87,180.34,180.24,2.97]
[1755659472080,2.87,180.34,180.26,5.5475]
[1755659472484,2.87,180.34,180.24,2.97]
[1755659473782,2.87,180.34,180.25,5.5479]
[1755659474888,2.87,180.34,180.26,5.5475]
[1755659475090,2.87,180.34,180.27,2.97]
[1755659475885,16.63,180.47,180.27,2.97]
[1755659476083,2.87,180.41,180.3,2.97]
[1755659477589,2.87,180.41,180.3,8.5163]
[1755659482493,2.87,180.41,180.31,5.546]
[1755659482693,2.87,180.41,180.3,2.97]
[1755659483194,2.87,180.39,180.26,2.97]
[1755659484593,3.82633903,180.36,180.21,2.97]
[1755659484794,2.87,180.34,180.21,2.97]
[1755659484997,3.82633903,180.32,180.21,2.97]
[1755659485202,2.87,180.31,180.21,2.97]
[1755659490704,137.26,180.3,180.21,2.97]
[1755659491104,137.26,180.3,180.17,3.82633903]
[1755659491308,3.01,180.29,180.22,2.9]
[1755659492409,137.26,180.3,180.22,2.9]
[1755659492610,3.01,180.29,180.22,2.9]
[1755659495214,137.42,180.28,180.22,2.9]
[1755659502824,3.01,180.27,180.18,2.9]
[1755659504015,5.47219224,180.27,180.18,2.9]
[1755659504215,3.01,180.26,180.18,2.9]
[1755659504722,137.42,180.28,180.14,2.9]
[1755659504723,3.01,180.23,180.14,2.9]
[1755659504921,3.01,180.21,180.14,2.9]
[1755659505122,3.01,180.21,180.11,2.9]
[1755659505518,137.24,180.22,180.04,7.0233552]
[1755659505519,3.01,180.2,180.16,0.03918664]
[1755659505719,0.03921612,180.18,180.16,0.03918664]
[1755659505920,0.03921612,180.18,180.12,2.9]
[1755659506321,0.03921612,180.18,180.15,2.94232499]
[1755659506521,0.03921612,180.18,180.15,0.04232499]
[1755659506721,140.27,180.2,180.16,2.9]
[1755659508426,140.27,180.2,180.07,3.83426762]
[1755659508427,137.26,180.2,180.12,5.5516]
[1755659508621,137.26,180.2,180.13,2.9]
[1755659510329,137.26,180.2,180.13,8.4515]
[1755659510626,140.27,180.2,180.13,2.9]
[1755659512629,3.01,180.19,180.08,2.9]
[1755659512829,3.01,180.24,180.08,2.9]